bitfinex/quotes_BTCUSD_20250526
["timestamp","ask_amount","ask_price","bid_price","bid_amount"]
[1748283026375,0.28682124,109050.0,109040.0,0.69721961]
[1748283026603,0.28682124,109050.0,109040.0,0.86220024]
[1748283026867,0.10341914,109050.0,109040.0,0.86219982]
[1748283027206,0.09424912,109050.0,109040.0,0.86219982]
[1748283027379,0.28682124,109050.0,109040.0,0.86219982]
[1748283027613,0.10341914,109050.0,109040.0,0.86219982]
[1748283028021,0.10341914,109050.0,109040.0,0.71555982]
[1748283028223,0.10341914,109050.0,109040.0,1.02207982]
[1748283028437,0.28682124,109050.0,109040.0,1.02207982]
[1748283029583,0.08507919,109050.0,109040.0,1.02207982]
[1748283029816,0.09424904,109050.0,109040.0,1.02207982]
[1748283031360,0.09424895,109050.0,109040.0,1.02207982]
[1748283032114,0.00204,109050.0,109040.0,1.02207982]
[1748283032562,0.00204,109050.0,109040.0,1.04958782]
[1748283034305,0.00204,109050.0,109040.0,1.16813338]
[1748283034550,0.00204,109050.0,109040.0,1.19373338]
[1748283037379,0.00204,109050.0,109040.0,1.19369539]
[1748283037813,0.00204,109050.0,109040.0,1.20823624]
[1748283038281,0.00104,109050.0,109040.0,1.20723624]
[1748283039133,4e-05,109050.0,109040.0,1.20723624]
[1748283039345,0.00916699,109080.0,109070.0,0.55087271]
[1748283039560,0.08403423,109080.0,109070.0,2.62795271]
[1748283039765,0.08403406,109080.0,109070.0,2.80493503]
[1748283040006,0.08403406,109080.0,109070.0,2.83243703]
[1748283040214,0.09320122,109080.0,109070.0,2.83134098]
[1748283040435,0.10236855,109080.0,109070.0,2.83134098]
[1748283040649,0.10536855,109080.0,109070.0,2.83234098]
[1748283040856,0.10536855,109080.0,109070.0,2.84695546]
[1748283041059,0.09620122,109080.0,109070.0,2.84695546]
[1748283041469,0.10236855,109080.0,109070.0,2.81845346]
[1748283041678,0.10436855,109080.0,109070.0,2.81945346]
[1748283041887,0.11353596,109080.0,109070.0,2.81945346]
[1748283042905,0.11453596,109080.0,109070.0,2.81945346]
[1748283043644,0.10536855,109080.0,109070.0,2.81945346]
[1748283043879,0.07786699,109080.0,109070.0,2.81945346]
[1748283044091,0.08703389,109080.0,109070.0,2.81945346]
[1748283044877,0.09620113,109080.0,109070.0,2.81578945]
[1748283045340,0.10536854,109080.0,109070.0,2.81578945]
[1748283045579,0.10536854,109080.0,109070.0,2.84329245]
[1748283048846,0.10536854,109080.0,109070.0,2.69669245]
[1748283049063,0.10536854,109080.0,109070.0,2.84329245]
[1748283049476,0.11453612,109080.0,109070.0,2.85900315]
[1748283049915,0.11453612,109080.0,109070.0,2.41591033]
[1748283049916,0.28872096,109080.0,109070.0,2.41591033]
[1748283050176,0.28872096,109080.0,109070.0,2.42507841]
[1748283050382,0.28872096,109080.0,109070.0,2.41591033]
[1748283050594,0.27955389,109080.0,109070.0,2.41591033]
[1748283052020,0.27955389,109080.0,109070.0,2.40495986]
[1748283052500,0.27959389,109080.0,109070.0,2.40495986]
[1748283054395,0.27042665,109080.0,109070.0,2.40495994]
[1748283057558,0.08707457,109080.0,109070.0,2.41412811]
[1748283057776,0.27959372,109080.0,109070.0,2.43246402]
[1748283058077,0.08707457,109080.0,109070.0,2.43246402]
[1748283058202,0.27042623,109080.0,109070.0,2.43246402]
[1748283058405,0.27959372,109080.0,109070.0,2.43246402]
[1748283058817,0.27959372,109080.0,109070.0,2.42329619]
[1748283059721,0.27959372,109080.0,109070.0,2.43246419]
[1748283059921,0.2887613,109080.0,109070.0,2.43246419]
[1748283060571,0.3887613,109080.0,109070.0,2.43246419]
[1748283060790,0.3887613,109080.0,109070.0,2.43246368]
[1748283061002,0.3887613,109080.0,109070.0,2.11713577]
[1748283061245,0.3887613,109080.0,109070.0,2.42329577]
[1748283061460,0.3887613,109080.0,109070.0,2.43246368]
[1748283061675,0.16874,109080.0,109070.0,2.43246326]
[1748283061899,0.10304,109080.0,109070.0,2.55100882]
[1748283062123,0.10304,109080.0,109070.0,2.56199434]
[1748283063036,0.10104,109080.0,109070.0,2.56099434]
[1748283063246,0.10004,109080.0,109070.0,2.57653519]
[1748283063460,0.10204,109080.0,109070.0,2.57753519]
[1748283063913,0.10204,109080.0,109070.0,2.59114615]
[1748283065684,0.10204,109080.0,109070.0,2.56554615]
[1748283066430,0.09452204,109080.0,109070.0,2.59114131]
[1748283066678,0.08103204,109080.0,109070.0,2.59114131]
[1748283067388,0.01667339,109080.0,109070.0,2.64614131]
[1748283067608,4e-05,109090.0,109080.0,0.61999423]
[1748283067824,4e-05,109090.0,109080.0,2.64001979]
[1748283068045,4e-05,109090.0,109080.0,2.69501979]
[1748283068466,4e-05,109090.0,109080.0,2.71215727]
[1748283068881,0.0001892,109090.0,109080.0,2.71215727]
[1748283069404,0.0001892,109090.0,109080.0,2.71315727]
[1748283070283,0.0011892,109090.0,109080.0,2.71315727]
[1748283070924,4e-05,109100.0,109090.0,0.56537491]
[1748283071200,8.977e-05,109100.0,109090.0,2.73196047]
[1748283071633,8.977e-05,109100.0,109090.0,2.77658995]
[1748283072226,8.977e-05,109100.0,109090.0,2.77758995]
[1748283072436,0.03158977,109100.0,109090.0,2.77758995]
[1748283072644,0.06168977,109100.0,109090.0,2.77758995]
[1748283073204,0.06168977,109100.0,109090.0,2.79219072]
[1748283073619,8.977e-05,109100.0,109090.0,2.79219072]
[1748283075306,8.977e-05,109100.0,109090.0,2.77758995]
[1748283076172,0.06208977,109100.0,109090.0,2.77758995]
[1748283076966,0.24540782,109100.0,109090.0,2.40565504]
[1748283077148,0.26373903,109100.0,109090.0,2.64063908]
[1748283077396,0.26373903,109100.0,109090.0,2.79636565]
[1748283077619,0.26373903,109100.0,109090.0,2.80553214]
[1748283078043,0.26373903,109100.0,109090.0,2.81469854]
[1748283078246,0.26373903,109100.0,109090.0,2.82386486]
[1748283078474,0.27290484,109100.0,109090.0,2.83845595]
[1748283078689,0.28207074,109100.0,109090.0,2.83817595]
[1748283079186,0.27290526,109100.0,109090.0,2.48654394]
[1748283079433,0.27290526,109100.0,109090.0,2.75178816]
[1748283079674,0.27290526,109100.0,109090.0,2.77012139]
[1748283080366,0.27290526,109100.0,109090.0,2.77928779]
[1748283081736,0.27290526,109100.0,109090.0,2.7609549]
[1748283081962,0.26373953,109100.0,109090.0,2.7609549]
[1748283082182,0.25457372,109100.0,109090.0,2.50980933]
[1748283082388,0.25457372,109100.0,109090.0,2.5189759]
[1748283083222,0.25457372,109100.0,109090.0,2.52814239]
[1748283083815,0.25457372,109100.0,109090.0,2.53730879]
[1748283084564,0.25457372,109100.0,109090.0,2.00234108]
[1748283084565,0.80368246,109100.0,109090.0,2.00234108]
[1748283084775,0.89322802,109100.0,109090.0,0.03272908]
[1748283084989,0.98274953,109100.0,109090.0,0.03272908]
[1748283085198,0.98274953,109100.0,109090.0,0.17928908]
[1748283085409,0.98274953,109100.0,109090.0,0.51928908]
[1748283085635,0.89322802,109100.0,109090.0,0.5021516]
[1748283085848,0.89322802,109100.0,109090.0,0.1621516]
[1748283086060,0.25580143,109090.0,109080.0,0.48656]
[1748283086266,0.80491017,109090.0,109080.0,1.113729]
[1748283086885,0.80491017,109090.0,109080.0,0.24515368]
[1748283087399,0.80491017,109090.0,109080.0,0.41108868]
[1748283087611,0.25621907,109080.0,109070.0,0.18571679]
[1748283087890,0.80532781,109080.0,109070.0,0.47029979]
[1748283088303,0.80532781,109080.0,109070.0,0.44475396]
[1748283088937,0.80532781,109080.0,109070.0,0.78475396]
[1748283089189,0.80532781,109080.0,109070.0,0.78575396]
[1748283089404,0.80532781,109080.0,109070.0,0.97829076]
[1748283089405,0.2653864,109080.0,109070.0,0.97829076]
[1748283089648,0.25621907,109080.0,109070.0,0.96912243]
[1748283089884,0.25621907,109080.0,109070.0,0.78575396]
[1748283090069,0.25621907,109080.0,109070.0,0.96912243]
[1748283090298,0.25621907,109080.0,109070.0,0.97829085]
[1748283091436,0.25621907,109080.0,109070.0,1.13757085]
[1748283092849,0.25621907,109080.0,109070.0,1.15590726]
[1748283094018,0.25621907,109080.0,109070.0,1.14673918]
[1748283094254,0.25621907,109080.0,109070.0,1.15590743]
[1748283094983,0.25621907,109080.0,109070.0,1.1650756]
[1748283096609,0.24705166,109080.0,109070.0,1.13757085]
[1748283096828,0.24705166,109080.0,109070.0,1.14673918]
[1748283097513,0.24705166,109080.0,109070.0,1.15769341]
[1748283098059,0.24705166,109080.0,109070.0,1.00196508]
[1748283098267,0.7961604,109080.0,109070.0,0.95602819]
[1748283098474,0.7961604,109080.0,109070.0,1.14856508]
[1748283098899,0.24705166,109080.0,109070.0,1.14856508]
[1748283099537,0.26538631,109080.0,109070.0,1.15773341]
[1748283099771,0.26538631,109080.0,109070.0,1.16690149]
[1748283099978,0.27455364,109080.0,109070.0,1.17606949]
[1748283100212,0.0637,109080.0,109070.0,1.18523732]
[1748283100755,0.0633,109090.0,109080.0,0.54168589]
[1748283100979,0.07025508,109100.0,109090.0,0.21083406]
[1748283101204,0.07025508,109100.0,109090.0,2.28791406]
[1748283101433,0.07942064,109100.0,109090.0,2.29886829]
[1748283101650,0.07025508,109100.0,109090.0,2.29886829]
[1748283101874,0.070255,109100.0,109090.0,2.29886829]
[1748283102103,0.070255,109100.0,109090.0,2.63886829]
[1748283102326,0.00308977,109100.0,109090.0,2.65445989]
[1748283103466,0.00308977,109100.0,109090.0,2.62891406]
[1748283104300,0.00608977,109100.0,109090.0,2.62991406]
[1748283104528,0.00608977,109100.0,109090.0,2.71945962]
[1748283105380,0.00308977,109100.0,109090.0,2.71845962]
[1748283105536,8.977e-05,109100.0,109090.0,2.71745962]
[1748283106365,8.977e-05,109100.0,109090.0,2.71845962]
[1748283106770,0.00108977,109100.0,109090.0,2.71845962]
[1748283107362,0.00108977,109100.0,109090.0,2.77305962]
[1748283108444,0.00108977,109100.0,109090.0,2.78760047]
[1748283108664,0.00108977,109100.0,109090.0,2.84261047]
[1748283109802,0.00108977,109100.0,109090.0,2.87069783]
[1748283109982,8.977e-05,109100.0,109090.0,2.87069783]
[1748283110221,0.00108977,109100.0,109090.0,2.87369783]
[1748283111130,0.00108977,109100.0,109090.0,2.87669783]
[1748283111131,0.00208977,109100.0,109090.0,2.87669783]
[1748283112078,0.00208977,109100.0,109090.0,2.90418583]
[1748283112895,0.00208977,109100.0,109090.0,2.90414583]
[1748283113259,0.00208977,109100.0,109090.0,3.40224583]
[1748283114509,0.00212977,109100.0,109090.0,3.40224583]
[1748283115578,0.00212977,109100.0,109090.0,3.26068583]
[1748283115792,0.00212977,109100.0,109090.0,3.56624583]
[1748283116045,0.00212977,109100.0,109090.0,3.66269583]
[1748283116283,0.00212977,109100.0,109090.0,3.56624583]
[1748283116505,0.063,109130.0,109120.0,0.55077609]
[1748283116738,0.11407406,109150.0,109140.0,0.55989968]
[1748283116949,0.11407406,109150.0,109140.0,2.72648524]
[1748283116950,0.10491303,109150.0,109140.0,2.72648524]
[1748283117176,0.10506242,109150.0,109140.0,2.72648524]
[1748283117393,0.07266242,109150.0,109140.0,2.72648524]
[1748283118011,0.00014939,109150.0,109140.0,2.74102609]
[1748283118488,0.00114939,109150.0,109140.0,2.7888583]
[1748283119111,0.00114939,109150.0,109140.0,2.76558991]
[1748283119534,0.00118939,109150.0,109140.0,2.76558991]
[1748283119794,0.00118939,109150.0,109140.0,2.74102609]
[1748283120037,0.00018939,109150.0,109140.0,2.76558991]
[1748283120241,0.00018939,109150.0,109140.0,2.79662609]
[1748283120657,0.00018939,109150.0,109140.0,2.79762609]
[1748283121081,0.00018939,109150.0,109140.0,2.86628572]
[1748283121308,0.00018939,109150.0,109140.0,2.87128572]
[1748283121519,0.00018939,109150.0,109140.0,2.91911793]
[1748283121736,1.60211303,109180.0,109170.0,0.55067957]
[1748283121945,1.6209279,109180.0,109170.0,2.87618513]
[1748283122151,1.6209279,109180.0,109170.0,2.90304182]
[1748283123268,1.61176922,109180.0,109170.0,2.92760564]
[1748283123482,1.62092781,109180.0,109170.0,2.92760564]
[1748283123691,1.63008666,109180.0,109170.0,2.92760564]
[1748283123919,1.63208657,109180.0,109170.0,2.92760564]
[1748283124136,1.63208657,109180.0,109170.0,2.90300182]
[1748283124347,1.62292781,109180.0,109170.0,2.90300182]
[1748283124555,1.63208657,109180.0,109170.0,2.92756564]
[1748283124766,1.63408657,109180.0,109170.0,2.89384239]
[1748283125027,1.6432455,109180.0,109170.0,2.91216134]
[1748283125444,1.7950753,109180.0,109170.0,2.29733669]
[1748283125665,2.31670826,109180.0,109170.0,1.13685469]
[1748283125892,2.38922129,109180.0,109170.0,0.02685669]
[1748283126146,2.47876685,109180.0,109170.0,0.02685669]
[1748283126441,0.25546036,109170.0,109160.0,0.3508787]
[1748283126648,0.8045691,109170.0,109160.0,0.7270297]
[1748283126876,0.8045691,109170.0,109160.0,0.3186797]
[1748283127100,0.26462013,109170.0,109160.0,0.6586797]
[1748283127310,0.27378007,109170.0,109160.0,0.86937898]
[1748283127529,0.27378007,109170.0,109160.0,0.86937906]
[1748283127697,0.26462013,109170.0,109160.0,0.8676608]
[1748283127928,0.27478015,109170.0,109160.0,0.8676608]
[1748283128136,0.0661,109170.0,109160.0,0.96636663]
[1748283128343,0.0661,109170.0,109160.0,0.99330548]
[1748283128547,0.08441879,109170.0,109160.0,0.99330548]
[1748283128760,0.09357839,109170.0,109160.0,0.99330548]
[1748283129489,0.08441879,109170.0,109160.0,0.99330548]
[1748283131404,0.0661,109170.0,109160.0,0.99330548]
[1748283131617,0.07525935,109170.0,109160.0,1.00418418]
[1748283131820,0.07525935,109170.0,109160.0,1.05919418]
[1748283132616,0.0661,109170.0,109160.0,1.05919418]
[1748283132827,0.0661,109170.0,109160.0,1.07369912]
[1748283133532,0.07525935,109170.0,109160.0,1.07369912]
[1748283133746,0.09357864,109170.0,109160.0,1.06282042]
[1748283133968,0.08441887,109170.0,109160.0,1.06282042]
[1748283135205,0.07525927,109170.0,109160.0,1.06282042]
[1748283135422,0.0844187,109170.0,109160.0,1.57718601]
[1748283135627,0.003,109170.0,109160.0,1.59172686]
[1748283135835,0.003,109170.0,109160.0,1.39852416]
[1748283136259,0.003,109170.0,109160.0,1.43861922]
[1748283136873,0.001,109170.0,109160.0,1.43861922]
[1748283137074,0.001,109170.0,109160.0,1.43961922]
[1748283137479,1.50049776,109180.0,109170.0,0.56522042]
[1748283137684,1.50049776,109180.0,109170.0,3.05288957]
[1748283138875,1.50049776,109180.0,109170.0,3.10789957]
[1748283139099,1.50149776,109180.0,109170.0,3.10789957]
[1748283139734,1.50249776,109180.0,109170.0,3.10789957]
[1748283139955,1.50249776,109180.0,109170.0,3.12240451]
[1748283142082,1.50249776,109180.0,109170.0,2.97592451]
[1748283142291,1.50249776,109180.0,109170.0,3.15136451]
[1748283142701,1.50149776,109180.0,109170.0,3.00492451]
[1748283142910,1.50149776,109180.0,109170.0,3.15136451]
[1748283143118,1.50149776,109180.0,109170.0,3.15336451]
[1748283143330,1.50149776,109180.0,109170.0,3.00692451]
[1748283143529,1.50149776,109180.0,109170.0,3.13685957]
[1748283143944,1.50049776,109180.0,109170.0,3.13885957]
[1748283144154,1.50049776,109180.0,109170.0,3.10985957]
[1748283144352,1.50049776,109180.0,109170.0,2.96341957]
[1748283144563,1.50049776,109180.0,109170.0,3.10985957]
[1748283144763,1.50149776,109180.0,109170.0,3.11285957]
[1748283145384,1.50149776,109180.0,109170.0,3.14032857]
[1748283146649,1.50149776,109180.0,109170.0,3.16941593]
[1748283146860,1.50149776,109180.0,109170.0,3.19841593]
[1748283147068,1.4844979,109180.0,109170.0,3.19841593]
[1748283147488,1.43874713,109180.0,109170.0,3.19841593]
[1748283147902,0.79709149,109180.0,109170.0,3.22401593]
[1748283148108,0.78389309,109180.0,109170.0,3.19492857]
[1748283148266,0.76189309,109180.0,109170.0,3.19492857]
[1748283148473,0.76189309,109180.0,109170.0,3.21949239]
[1748283148880,0.62610232,109180.0,109170.0,3.21949239]
[1748283149104,1.13769232,109190.0,109170.0,3.2103327]
[1748283149310,1.13778353,109190.0,109180.0,3.13239251]
[1748283149526,1.13778353,109190.0,109180.0,3.10553942]
[1748283149891,1.09203446,109190.0,109180.0,3.13300642]
[1748283150104,1.00053632,109190.0,109180.0,3.71508209]
[1748283150326,0.95478725,109190.0,109180.0,3.71508209]
[1748283150535,0.90903818,109190.0,109180.0,3.72966678]
[1748283150747,0.86328911,109190.0,109180.0,3.7542306]
[1748283151172,0.86328911,109190.0,109180.0,3.7552306]
[1748283152113,0.86428911,109190.0,109180.0,3.18344615]
[1748283152966,0.92798911,109190.0,109180.0,3.32988615]
[1748283153779,0.92798911,109190.0,109180.0,3.32831971]
[1748283154140,0.92798911,109190.0,109180.0,3.10801521]
[1748283154343,0.92798911,109190.0,109180.0,3.31755935]
[1748283154919,0.92798911,109190.0,109180.0,3.31643779]
[1748283155356,0.92798911,109190.0,109180.0,3.31576698]
[1748283156049,0.92798911,109190.0,109180.0,3.31509041]
[1748283158933,0.92798911,109190.0,109180.0,3.16865041]
[1748283159152,0.92798911,109190.0,109180.0,3.31505041]
[1748283160248,0.92798911,109190.0,109180.0,3.30046572]
[1748283160524,0.92798911,109190.0,109180.0,2.99538572]
[1748283160743,0.95546255,109190.0,109180.0,3.24545572]
[1748283160972,0.96462064,109190.0,109180.0,3.24545572]
[1748283161198,0.94630454,109190.0,109180.0,3.21798872]
[1748283161417,0.95546229,109190.0,109180.0,3.21798872]
[1748283161631,0.9646203,109190.0,109180.0,3.21798872]
[1748283162116,0.94630437,109190.0,109180.0,3.21798872]
[1748283162329,0.95546221,109190.0,109180.0,3.21798872]
[1748283163071,0.95546221,109190.0,109180.0,3.2325887]
[1748283163285,0.9371467,109190.0,109180.0,3.2325887]
[1748283163497,0.92798911,109190.0,109180.0,3.2325887]
[1748283163710,0.9371467,109190.0,109180.0,3.2875987]
[1748283163921,0.92798911,109190.0,109180.0,3.2875987]
[1748283165360,0.92798911,109190.0,109180.0,3.27299872]
[1748283169550,0.92798911,109190.0,109180.0,3.27279872]
[1748283169789,0.92798911,109190.0,109180.0,3.12639872]
[1748283169987,0.92798911,109190.0,109180.0,3.27279872]
[1748283171760,0.92798911,109190.0,109180.0,3.12639872]
[1748283171974,0.92798911,109190.0,109180.0,3.27279872]
[1748283172174,0.92798911,109190.0,109180.0,3.27283872]
[1748283174143,0.92798911,109190.0,109180.0,3.12639872]
[1748283174346,0.92798911,109190.0,109180.0,3.27283872]
[1748283175945,0.9371467,109190.0,109180.0,3.27283872]
[1748283176290,0.92798911,109190.0,109180.0,3.12639872]
[1748283176493,0.92798911,109190.0,109180.0,3.27283872]
[1748283178429,0.92798911,109190.0,109180.0,3.30030972]
[1748283181595,0.92798911,109190.0,109180.0,3.31485057]
[1748283183301,0.86428911,109190.0,109180.0,3.31485057]
[1748283183750,0.86428911,109190.0,109180.0,3.34393793]
[1748283184695,0.92868911,109190.0,109180.0,3.34393793]
[1748283185990,0.92868911,109190.0,109180.0,3.03901793]
[1748283186192,0.92868911,109190.0,109180.0,3.34389793]
[1748283187018,0.92868911,109190.0,109180.0,3.31481057]
[1748283187465,0.92868911,109190.0,109180.0,3.08042526]
[1748283188344,0.92868911,109190.0,109180.0,2.98960631]
[1748283189167,0.92872911,109190.0,109180.0,2.98960631]
[1748283189299,0.92872911,109190.0,109180.0,3.32960631]
[1748283191114,0.92872911,109190.0,109180.0,3.18320631]
[1748283191318,0.92872911,109190.0,109180.0,3.32960631]
[1748283192064,0.92872911,109190.0,109180.0,2.46196483]
[1748283192280,0.92872911,109190.0,109180.0,3.32960631]
[1748283193469,0.9378867,109190.0,109180.0,3.32960631]
[1748283193670,0.9378867,109190.0,109180.0,3.34675226]
[1748283194457,0.94704437,109190.0,109180.0,3.34675226]
[1748283195577,0.9378867,109190.0,109180.0,3.34675226]
[1748283195964,0.9378867,109190.0,109180.0,3.34675086]
[1748283196228,0.92872911,109190.0,109180.0,3.34675086]
[1748283198150,0.92872911,109190.0,109180.0,3.37600354]
[1748283198584,0.92872911,109190.0,109180.0,3.92422417]
[1748283201816,0.92872911,109190.0,109180.0,3.37600354]
[1748283202671,0.92872911,109190.0,109180.0,3.17646454]
[1748283203162,0.92872911,109190.0,109180.0,3.14721186]
[1748283213618,0.92872911,109190.0,109180.0,3.17646454]
[1748283224002,0.92372911,109190.0,109180.0,3.17646454]
[1748283227925,0.92372911,109190.0,109180.0,3.86187964]
[1748283230447,0.92372911,109190.0,109180.0,3.7392066]
[1748283230972,0.92372911,109190.0,109180.0,3.70995392]
[1748283236526,0.92372911,109190.0,109180.0,3.70951392]
[1748283244530,0.85932911,109190.0,109180.0,4.12072583]
[1748283245271,0.85932911,109190.0,109180.0,4.14972583]
[1748283245500,0.48056499,109190.0,109180.0,4.14972583]
[1748283245735,0.48056499,109190.0,109180.0,4.12072583]
[1748283245872,0.48056499,109190.0,109180.0,3.92230986]
[1748283246115,0.48056499,109190.0,109180.0,4.18796859]
[1748283247209,0.48056499,109190.0,109180.0,4.21544513]
[1748283250774,0.48056499,109190.0,109180.0,3.80423322]
[1748283251543,0.48056499,109190.0,109180.0,2.57059749]
[1748283251754,0.48056499,109190.0,109180.0,3.80423322]
[1748283253179,0.54436499,109190.0,109180.0,3.80423322]
[1748283253328,0.54436499,109190.0,109180.0,3.39302131]
[1748283254355,0.54436499,109190.0,109180.0,3.49979322]
[1748283254697,0.54436499,109190.0,109180.0,3.39302131]
[1748283254839,0.54436499,109190.0,109180.0,3.80423322]
[1748283256818,0.54436499,109190.0,109180.0,3.08858131]
[1748283257051,0.54436499,109190.0,109180.0,3.39302131]
[1748283257187,0.54436499,109190.0,109180.0,3.80423322]
[1748283260236,0.54436499,109190.0,109180.0,3.49979322]
[1748283260436,0.54436499,109190.0,109180.0,3.80395322]
[1748283261332,0.54436499,109190.0,109180.0,3.49979322]
[1748283261558,0.54436499,109190.0,109180.0,3.80395322]
[1748283263395,0.54440499,109190.0,109180.0,3.80395322]
[1748283264185,0.54440499,109190.0,109180.0,3.49979322]
[1748283264394,0.54440499,109190.0,109180.0,3.80395322]
[1748283264595,0.54440499,109190.0,109180.0,3.24634131]
[1748283264920,0.54440499,109190.0,109180.0,3.39274131]
[1748283265678,0.54440499,109190.0,109180.0,3.42199168]
[1748283266459,0.54440499,109190.0,109180.0,2.22208042]
[1748283266666,0.54440499,109190.0,109180.0,3.07987168]
[1748283266667,0.57187876,109190.0,109180.0,3.07987168]
[1748283266867,0.57187876,109190.0,109180.0,3.2061799]
[1748283267489,0.56272058,109190.0,109180.0,3.2061799]
[1748283267696,0.57187876,109190.0,109180.0,3.2062199]
[1748283268966,0.57187867,109190.0,109180.0,3.2062199]
[1748283269361,0.58103685,109190.0,109180.0,3.2062199]
[1748283269632,0.56272058,109190.0,109180.0,3.2062199]
[1748283270167,0.57187867,109190.0,109180.0,2.9020199]
[1748283270372,0.57187859,109190.0,109180.0,3.2062199]
[1748283271854,0.56272058,109190.0,109180.0,3.2062199]
[1748283275910,0.55356266,109190.0,109180.0,3.2062199]
[1748283276218,0.56272058,109190.0,109180.0,3.2062199]
[1748283276721,0.55356266,109190.0,109180.0,3.2062199]
[1748283276984,0.56272058,109190.0,109180.0,3.2062199]
[1748283277530,0.48060499,109190.0,109180.0,3.72151822]
[1748283277843,0.48060499,109190.0,109180.0,3.80399722]
[1748283278220,0.48060499,109190.0,109180.0,3.83324759]
[1748283280027,0.48060499,109190.0,109180.0,3.1767911]
[1748283280371,0.48060499,109190.0,109180.0,3.1477911]
[1748283280679,0.48060499,109190.0,109180.0,3.69597034]
[1748283283480,0.48060499,109190.0,109180.0,3.79597034]
[1748283285728,0.03500014,109190.0,109180.0,3.79597034]
[1748283287131,0.03500014,109190.0,109180.0,3.76671997]
[1748283290621,0.03500014,109190.0,109180.0,3.80071997]
[1748283290830,0.03500014,109190.0,109180.0,3.82631997]
[1748283291041,0.03500014,109190.0,109180.0,3.77171997]
[1748283293429,1.5632,109220.0,109210.0,0.36746899]
[1748283293657,1.57235507,109220.0,109210.0,3.04452705]
[1748283293875,1.58151023,109220.0,109210.0,3.04452705]
[1748283294089,1.59066555,109220.0,109210.0,3.0891346]
[1748283294298,1.58151023,109220.0,109210.0,3.0891346]
[1748283294738,1.59566555,109220.0,109210.0,3.11846777]
[1748283295061,1.58651023,109220.0,109210.0,3.11846777]
[1748283295938,1.58655997,109220.0,109210.0,3.11846777]
[1748283296267,1.58655997,109220.0,109210.0,3.20386175]
[1748283297954,1.58655997,109220.0,109210.0,2.65568251]
[1748283298159,1.58655997,109220.0,109210.0,3.20386175]
[1748283299420,1.61402644,109220.0,109210.0,3.04292098]
[1748283299569,1.79714367,109220.0,109210.0,2.34637782]
[1748283299917,1.59571563,109220.0,109210.0,2.65029782]
[1748283300093,1.60487129,109220.0,109210.0,2.65029782]
[1748283300292,1.61402703,109220.0,109210.0,2.65029782]
[1748283300493,1.60487129,109220.0,109210.0,2.66489483]
[1748283300719,1.79714367,109220.0,109210.0,2.56619319]
[1748283300918,1.79714367,109220.0,109210.0,2.57534927]
[1748283301121,1.79714367,109220.0,109210.0,2.57531192]
[1748283301322,1.61402703,109220.0,109210.0,2.57531192]
[1748283301739,1.76967778,109220.0,109210.0,2.05163336]
[1748283301934,2.32736139,109220.0,109210.0,0.13270421]
[1748283302093,2.39987442,109220.0,109210.0,0.13270421]
[1748283302294,2.39987442,109220.0,109210.0,0.1181072]
[1748283302513,2.39987442,109220.0,109210.0,0.12905667]
[1748283303679,2.39987442,109220.0,109210.0,0.46905667]
[1748283304105,2.53700809,109220.0,109210.0,0.46905667]
[1748283305110,2.71607516,109220.0,109210.0,0.06455667]
[1748283305318,2.71611516,109220.0,109210.0,0.06455667]
[1748283305518,2.62659365,109220.0,109210.0,0.06455667]
[1748283305724,2.00566334,109220.0,109210.0,0.0536072]
[1748283307769,2.55408062,109220.0,109210.0,0.0536072]
[1748283317080,2.55108062,109220.0,109210.0,0.0536072]
[1748283317331,2.64460213,109220.0,109210.0,0.0546072]
[1748283317684,2.55508062,109220.0,109210.0,0.0546072]
[1748283317893,2.56008062,109220.0,109210.0,0.0556072]
[1748283319984,1.86526334,109220.0,109210.0,0.0556072]
[1748283320188,2.01170334,109220.0,109210.0,0.0556072]
[1748283323348,2.01170334,109220.0,109210.0,0.0556072]
[1748283325822,1.86526334,109220.0,109210.0,0.0556072]
[1748283326105,2.01170334,109220.0,109210.0,0.0556072]
[1748283326545,1.86526334,109220.0,109210.0,0.0556072]
[1748283326754,2.01170334,109220.0,109210.0,0.0556072]
[1748283334143,2.01170334,109220.0,109210.0,0.05493279]
[1748283334279,2.01145534,109220.0,109210.0,0.05493279]
[1748283334653,2.01145534,109220.0,109210.0,0.05425831]
[1748283335194,2.01145534,109220.0,109210.0,0.06520778]
[1748283342497,2.55987262,109220.0,109210.0,0.06520778]
[1748283342707,2.56987262,109220.0,109210.0,0.06520778]
[1748283343134,2.57842437,109220.0,109210.0,0.06520778]
[1748283343555,2.57842437,109220.0,109210.0,0.05425831]
[1748283344454,1.87356709,109220.0,109210.0,0.05425831]
[1748283344682,2.02000709,109220.0,109210.0,0.05425831]
[1748283346006,2.02000709,109220.0,109210.0,0.06520778]
[1748283346223,2.65794588,109220.0,109210.0,0.06520778]
[1748283347113,2.1095286,109220.0,109210.0,0.06520778]
[1748283348919,2.65794588,109220.0,109210.0,0.06520778]
[1748283349136,2.1095286,109220.0,109210.0,0.06520778]
[1748283350382,2.17265636,109220.0,109210.0,0.06520778]
[1748283350587,2.08313485,109220.0,109210.0,0.40520778]
[1748283353911,2.06313485,109220.0,109210.0,0.40520778]
[1748283354159,2.06313485,109220.0,109210.0,0.39425831]
[1748283354895,2.06313485,109220.0,109210.0,0.05425831]
[1748283355191,0.19230752,109200.0,109190.0,0.78132278]
[1748283355349,0.42829308,109200.0,109190.0,2.15820578]
[1748283355571,0.42829308,109200.0,109190.0,2.11649478]
[1748283355806,0.49079308,109200.0,109190.0,0.475529]
[1748283355943,0.49079308,109200.0,109190.0,1.01173528]
[1748283356144,0.49079308,109200.0,109190.0,0.463318]
[1748283356590,0.49279308,109200.0,109190.0,0.464318]
[1748283356819,0.49279308,109200.0,109190.0,0.441798]
[1748283357094,0.49479308,109200.0,109190.0,0.441798]
[1748283360262,0.49479308,109200.0,109190.0,0.99021528]
[1748283362651,0.49479308,109200.0,109190.0,1.00111428]
[1748283364977,0.56258573,109200.0,109190.0,0.341]
[1748283365210,1.11100301,109200.0,109190.0,0.001]
[1748283365658,1.13554386,109200.0,109190.0,0.001]
[1748283366091,1.13354386,109200.0,109190.0,0.001]
[1748283366504,1.13754386,109200.0,109190.0,0.002]
[1748283367274,0.58712658,109200.0,109190.0,0.001]
[1748283367448,0.59112658,109200.0,109190.0,0.002]
[1748283367678,0.58712658,109200.0,109190.0,0.001]
[1748283367826,0.59312658,109200.0,109190.0,0.002]
[1748283368015,0.58912658,109200.0,109190.0,0.001]
[1748283368252,1.20666823,109200.0,109190.0,0.002]
[1748283369699,1.19666823,109200.0,109190.0,0.002]
[1748283369907,0.65825095,109200.0,109190.0,0.002]
[1748283371799,0.4972701,109200.0,109190.0,0.002]
[1748283371980,0.6437101,109200.0,109190.0,0.002]
[1748283373451,0.41947745,109200.0,109190.0,0.002]
[1748283373660,0.56595745,109200.0,109190.0,0.342]
[1748283373880,0.50345745,109200.0,109190.0,1.20738528]
[1748283374090,0.50345745,109200.0,109190.0,1.09994028]
[1748283374302,0.50345745,109200.0,109190.0,1.02442128]
[1748283374570,0.60908654,109200.0,109190.0,0.342]
[1748283375107,0.54596217,109200.0,109190.0,0.342]
[1748283379267,0.57846217,109200.0,109190.0,0.342]